bitfinex/quotes_BTCUSD_20241004
["timestamp","ask_amount","ask_price","bid_price","bid_amount"]
[1728076592062,0.34412433,62511.0,62510.0,0.508741]
[1728076592295,0.36920651,62511.0,62510.0,0.508741]
[1728076593469,0.34522961,62511.0,62510.0,0.508741]
[1728076593902,0.25112961,62511.0,62510.0,0.508741]
[1728076594149,0.0431704,62511.0,62510.0,0.508741]
[1728076594382,0.0431704,62511.0,62510.0,0.585741]
[1728076595857,0.01808822,62511.0,62510.0,0.585741]
[1728076596565,0.17805922,62511.0,62510.0,0.585741]
[1728076599454,0.01808822,62511.0,62510.0,0.585741]
[1728076599740,0.01808822,62511.0,62510.0,0.678841]
[1728076599965,0.01808822,62511.0,62510.0,0.838815]
[1728076600403,0.01808822,62511.0,62510.0,0.678841]
[1728076602441,0.04316918,62511.0,62510.0,0.678841]
[1728076603590,0.01808822,62511.0,62510.0,0.678841]
[1728076605429,0.17805922,62511.0,62510.0,0.678841]
[1728076605882,0.01808822,62511.0,62510.0,0.678841]
[1728076608127,0.17805922,62511.0,62510.0,0.678841]
[1728076608614,0.01808822,62511.0,62510.0,0.678841]
[1728076608828,0.17805922,62511.0,62510.0,0.678841]
[1728076610687,0.01808822,62511.0,62510.0,0.678841]
[1728076611581,0.17805922,62511.0,62510.0,0.678841]
[1728076613628,0.01808822,62511.0,62510.0,0.678841]
[1728076613853,0.17805922,62511.0,62510.0,0.678841]
[1728076618479,0.17805922,62511.0,62510.0,0.585741]
[1728076619854,0.17805922,62511.0,62510.0,0.508741]
[1728076621049,0.27325922,62511.0,62510.0,0.508741]
[1728076621193,0.3693244,62511.0,62510.0,0.508741]
[1728076626133,0.36931974,62511.0,62510.0,0.508741]
[1728076628900,0.27325922,62511.0,62510.0,0.508741]
[1728076631631,0.11328822,62511.0,62510.0,0.508741]
[1728076631867,0.2500986,62511.0,62510.0,0.508741]
[1728076632333,0.22608507,62511.0,62510.0,0.508741]
[1728076632561,0.17805922,62511.0,62510.0,0.508741]
[1728076632757,0.22608507,62511.0,62510.0,0.508741]
[1728076633027,0.17805922,62511.0,62510.0,0.508741]
[1728076633249,0.22608507,62511.0,62510.0,0.508741]
[1728076633706,0.17805922,62511.0,62510.0,0.508741]
[1728076634860,0.22608457,62511.0,62510.0,0.508741]
[1728076635785,0.2500986,62511.0,62510.0,0.508741]
[1728076637186,0.17805922,62511.0,62510.0,0.508741]
[1728076637420,0.2500986,62511.0,62510.0,0.508741]
[1728076638423,0.17805922,62511.0,62510.0,0.508741]
[1728076647617,0.2501031,62511.0,62510.0,0.508741]
[1728076653190,0.2501031,62511.0,62510.0,0.588941]
[1728076653191,0.01808822,62511.0,62510.0,0.588941]
[1728076653436,0.01808822,62511.0,62510.0,0.748915]
[1728076653786,0.01808822,62511.0,62510.0,0.846815]
[1728076654003,0.00135077,62511.0,62510.0,0.846815]
[1728076654900,0.00135077,62511.0,62510.0,0.832815]
[1728076655120,0.00135077,62511.0,62510.0,0.818815]
[1728076655342,0.00135077,62511.0,62510.0,0.846815]
[1728076656028,0.00135077,62511.0,62510.0,0.832815]
[1728076656755,0.00135077,62511.0,62510.0,1.01000171]
[1728076656989,0.00135077,62511.0,62510.0,1.11000171]
[1728076657226,0.00135077,62511.0,62510.0,1.15775611]
[1728076657451,0.00135077,62511.0,62510.0,1.11200171]
[1728076657686,0.00135077,62511.0,62510.0,1.09800171]
[1728076657912,0.00135077,62511.0,62510.0,1.11200171]
[1728076658170,0.00135077,62511.0,62510.0,1.12869905]
[1728076658385,0.02642556,62511.0,62510.0,1.09800171]
[1728076658610,0.02642556,62511.0,62510.0,1.11200171]
[1728076658844,0.02642556,62511.0,62510.0,1.13500171]
[1728076659078,0.02642556,62511.0,62510.0,1.12100171]
[1728076659790,0.02642556,62511.0,62510.0,1.13500171]
[1728076660258,0.02642556,62511.0,62510.0,1.12100171]
[1728076660740,0.02642556,62511.0,62510.0,1.10700171]
[1728076661468,0.02642556,62511.0,62510.0,1.12100171]
[1728076661713,0.02642556,62511.0,62510.0,1.13500171]
[1728076661949,0.02642556,62511.0,62510.0,1.12100171]
[1728076662216,0.02642556,62511.0,62510.0,1.10700171]
[1728076662454,0.00135077,62511.0,62510.0,1.12100171]
[1728076662690,0.00135077,62511.0,62510.0,1.10500171]
[1728076662908,0.00135077,62511.0,62510.0,1.11900171]
[1728076663367,0.00135077,62511.0,62510.0,1.10500171]
[1728076663827,0.00135077,62511.0,62510.0,1.11900171]
[1728076664511,0.00135077,62511.0,62510.0,1.10500171]
[1728076664743,0.00135077,62511.0,62510.0,1.13300171]
[1728076664981,0.00135077,62511.0,62510.0,1.11900171]
[1728076665223,0.00135077,62511.0,62510.0,1.13300171]
[1728076665448,0.00135077,62511.0,62510.0,1.10500171]
[1728076665673,0.02642579,62511.0,62510.0,1.11900171]
[1728076665899,0.02642579,62511.0,62510.0,1.13300171]
[1728076666352,0.02642579,62511.0,62510.0,1.11900171]
[1728076666845,0.02642579,62511.0,62510.0,1.13300171]
[1728076667323,0.02642579,62511.0,62510.0,1.11900171]
[1728076667550,0.02642579,62511.0,62510.0,1.13300171]
[1728076667783,0.02642579,62511.0,62510.0,1.11900171]
[1728076668016,0.02642579,62511.0,62510.0,1.10500171]
[1728076668256,0.02642579,62511.0,62510.0,1.13300171]
[1728076671612,0.02642579,62511.0,62510.0,1.11900171]
[1728076672298,0.02642579,62511.0,62510.0,1.13300171]
[1728076674018,0.02642579,62511.0,62510.0,1.11900171]
[1728076674454,0.02642579,62511.0,62510.0,1.13300171]
[1728076678912,0.02642579,62511.0,62510.0,1.11900171]
[1728076679130,0.02642579,62511.0,62510.0,1.10500171]
[1728076679360,0.02642579,62511.0,62510.0,1.13300171]
[1728076680498,0.02642579,62511.0,62510.0,1.11900171]
[1728076680746,0.02642579,62511.0,62510.0,1.10500171]
[1728076680987,0.02642579,62511.0,62510.0,1.13300171]
[1728076684113,0.02642579,62511.0,62510.0,0.848915]
[1728076687598,0.02642579,62511.0,62510.0,1.11180171]
[1728076687828,0.02642579,62511.0,62510.0,1.13480171]
[1728076688544,0.02642579,62511.0,62510.0,1.12280171]
[1728076689016,0.02642579,62511.0,62510.0,1.13480171]
[1728076689245,0.02642579,62511.0,62510.0,1.12080171]
[1728076689728,0.02642579,62511.0,62510.0,1.13680171]
[1728076689955,0.00135077,62511.0,62510.0,1.13680171]
[1728076690174,0.00135077,62511.0,62510.0,1.12280171]
[1728076690632,0.00135077,62511.0,62510.0,1.13680171]
[1728076693728,0.00135077,62511.0,62510.0,1.14180171]
[1728076694446,0.00135077,62511.0,62510.0,1.12780171]
[1728076694675,0.00135077,62511.0,62510.0,1.11380171]
[1728076694912,0.00135077,62511.0,62510.0,1.18939975]
[1728076695146,0.00135077,62511.0,62510.0,1.17539827]
[1728076695383,0.00135077,62511.0,62510.0,1.12780171]
[1728076695612,0.00135077,62511.0,62510.0,1.16139827]
[1728076695841,0.00135077,62511.0,62510.0,1.17539827]
[1728076696358,0.00135077,62511.0,62510.0,1.12780171]
[1728076696601,0.00135077,62511.0,62510.0,1.14180171]
[1728076697518,0.00135077,62511.0,62510.0,1.21312345]
[1728076697982,0.00135077,62511.0,62510.0,1.19912345]
[1728076698433,0.00135077,62511.0,62510.0,1.23689737]
[1728076699358,0.00135077,62511.0,62510.0,1.24667128]
[1728076700301,0.00135077,62511.0,62510.0,1.26067128]
[1728076700535,0.00135077,62511.0,62510.0,1.14180171]
[1728076700761,0.00135077,62511.0,62510.0,1.12780171]
[1728076700993,0.00135077,62511.0,62510.0,1.11380171]
[1728076701226,0.00135077,62511.0,62510.0,1.12780171]
[1728076701449,0.00135077,62511.0,62510.0,1.14180171]
[1728076702773,0.00135077,62511.0,62510.0,1.12780171]
[1728076703066,0.00135077,62511.0,62510.0,1.14180171]
[1728076704393,0.00135077,62511.0,62510.0,1.12780171]
[1728076704761,0.00135077,62511.0,62510.0,1.14180171]
[1728076705168,0.00135077,62511.0,62510.0,1.13680171]
[1728076709081,0.00135077,62511.0,62510.0,1.12280171]
[1728076709453,0.00135077,62511.0,62510.0,1.24205543]
[1728076709658,0.00135077,62511.0,62510.0,1.25605543]
[1728076710056,0.00135077,62511.0,62510.0,1.24205543]
[1728076710543,0.00135077,62511.0,62510.0,1.25605543]
[1728076712169,0.00135077,62511.0,62510.0,1.13680171]
[1728076713152,0.00135077,62511.0,62510.0,1.13480171]
[1728076713856,0.00135077,62511.0,62510.0,1.12080171]
[1728076714079,0.00135077,62511.0,62510.0,1.10680171]
[1728076714342,0.00135077,62511.0,62510.0,1.13480171]
[1728076719392,0.00135077,62511.0,62510.0,1.24005641]
[1728076720468,0.00135077,62511.0,62510.0,1.25405641]
[1728076724009,0.00135077,62511.0,62510.0,1.25405707]
[1728076727102,0.00135077,62511.0,62510.0,1.27266817]
[1728076727341,0.00135077,62511.0,62510.0,1.27066817]
[1728076727799,0.00135077,62511.0,62510.0,1.25666817]
[1728076728289,0.00135077,62511.0,62510.0,1.24266817]
[1728076728948,0.00135077,62511.0,62510.0,1.22605707]
[1728076729168,0.00135077,62511.0,62510.0,1.24005707]
[1728076729391,0.00135077,62511.0,62510.0,1.27066871]
[1728076732409,0.00135077,62511.0,62510.0,1.25667308]
[1728076732638,0.00135077,62511.0,62510.0,1.27267308]
[1728076732856,0.00135077,62511.0,62510.0,1.28928925]
[1728076733358,0.00135077,62511.0,62510.0,1.13941788]
[1728076733578,0.00135077,62511.0,62510.0,1.13741788]
[1728076733791,0.00135077,62511.0,62510.0,1.15141788]
[1728076734957,0.00135077,62511.0,62510.0,1.13741788]
[1728076735647,0.00135077,62511.0,62510.0,1.15141788]
[1728076736150,0.00135077,62511.0,62510.0,1.13741228]
[1728076736617,0.00135077,62511.0,62510.0,1.15141228]
[1728076737101,0.00135077,62511.0,62510.0,1.13741228]
[1728076737357,0.00135077,62511.0,62510.0,1.15141228]
[1728076739497,0.00135077,62511.0,62510.0,1.15142115]
[1728076740404,0.00135077,62511.0,62510.0,1.13942115]
[1728076740632,0.00135077,62511.0,62510.0,1.12542115]
[1728076740872,0.00135077,62511.0,62510.0,1.15342115]
[1728076741876,0.00135077,62511.0,62510.0,1.13680171]
[1728076742120,0.00135077,62511.0,62510.0,1.15342108]
[1728076743289,0.00135077,62511.0,62510.0,1.13942108]
[1728076743981,0.00135077,62511.0,62510.0,1.15342108]
[1728076744205,0.00135077,62511.0,62510.0,1.13942108]
[1728076745575,0.00135077,62511.0,62510.0,1.12280171]
[1728076745797,0.00135077,62511.0,62510.0,1.13943298]
[1728076746013,0.00135077,62511.0,62510.0,1.15343298]
[1728076746237,0.00135077,62511.0,62510.0,1.13943298]
[1728076747141,0.00135077,62511.0,62510.0,1.15343298]
[1728076747356,0.00135077,62511.0,62510.0,1.12543298]
[1728076747605,0.00135077,62511.0,62510.0,1.13943298]
[1728076747836,0.00135077,62511.0,62510.0,1.15343298]
[1728076748520,0.00135077,62511.0,62510.0,1.15843298]
[1728076749242,0.00135077,62511.0,62510.0,1.12780171]
[1728076749477,0.00135077,62511.0,62510.0,1.19900801]
[1728076749919,0.00135077,62511.0,62510.0,1.21300801]
[1728076750146,0.00135077,62511.0,62510.0,1.18500801]
[1728076750394,0.00135077,62511.0,62510.0,1.21300801]
[1728076750610,0.00135077,62511.0,62510.0,1.1583922]
[1728076750834,0.00135077,62511.0,62510.0,1.1303922]
[1728076751046,0.00135077,62511.0,62510.0,1.1443922]
[1728076752439,0.00135077,62511.0,62510.0,1.1583922]
[1728076752940,0.00135077,62511.0,62510.0,1.14180171]
[1728076753182,0.00135077,62511.0,62510.0,1.15834957]
[1728076753894,0.00135077,62511.0,62510.0,1.85834957]
[1728076754821,0.00135077,62511.0,62510.0,1.89042957]
[1728076755529,0.00135077,62511.0,62510.0,1.87642957]
[1728076756016,0.00135077,62511.0,62510.0,1.87642393]
[1728076756244,0.00135077,62511.0,62510.0,1.19042393]
[1728076757174,0.00135077,62511.0,62510.0,1.33332544]
[1728076759537,0.00135077,62511.0,62510.0,1.33331594]
[1728076761568,0.00135077,62511.0,62510.0,1.31931594]
[1728076761789,0.00135077,62511.0,62510.0,1.33331594]
[1728076762006,0.00135077,62511.0,62510.0,1.31931594]
[1728076762230,0.00135077,62511.0,62510.0,1.17641443]
[1728076762446,0.00135077,62511.0,62510.0,1.16241443]
[1728076762661,0.00135077,62511.0,62510.0,1.17641443]
[1728076762876,0.00135077,62511.0,62510.0,1.19041443]
[1728076763093,0.00135077,62511.0,62510.0,1.16241443]
[1728076763337,0.00135077,62511.0,62510.0,1.19043347]
[1728076766312,0.00135077,62511.0,62510.0,1.17388171]
[1728076766524,0.00135077,62511.0,62510.0,1.19041529]
[1728076770825,0.00135077,62511.0,62510.0,1.17641529]
[1728076771722,0.00135077,62511.0,62510.0,1.16241529]
[1728076771951,0.00135077,62511.0,62510.0,1.19041529]
[1728076772166,0.00135077,62511.0,62510.0,1.17641529]
[1728076772640,0.00135077,62511.0,62510.0,1.43577487]
[1728076772863,0.00135077,62511.0,62510.0,1.19541529]
[1728076773554,0.00135077,62511.0,62510.0,1.24988919]
[1728076773794,0.001644,62521.0,62520.0,0.342248]
[1728076774019,0.001644,62521.0,62520.0,1.05683262]
[1728076774241,0.001644,62521.0,62520.0,1.06183262]
[1728076774465,0.001644,62521.0,62520.0,1.04536471]
[1728076774723,0.001644,62521.0,62520.0,1.13646471]
[1728076775210,0.001644,62521.0,62520.0,1.83846471]
[1728076775421,0.001644,62521.0,62520.0,1.85246471]
[1728076775858,0.001644,62521.0,62520.0,1.86646471]
[1728076777220,0.001644,62521.0,62520.0,1.96161631]
[1728076777432,0.001644,62521.0,62520.0,1.26161631]
[1728076778970,0.001644,62521.0,62520.0,1.17295492]
[1728076780566,0.001644,62521.0,62520.0,1.41177318]
[1728076782210,0.001644,62521.0,62520.0,1.46608829]
[1728076782441,0.001644,62521.0,62520.0,1.5340608]
[1728076782699,0.001644,62521.0,62520.0,2.02345747]
[1728076784924,0.001644,62521.0,62520.0,2.08753947]
[1728076789449,0.02506749,62529.0,62520.0,2.08753947]
[1728076789450,0.02506749,62529.0,62528.0,0.372228]
[1728076789683,0.24035958,62535.0,62534.0,0.161913]
[1728076789950,0.24035958,62535.0,62534.0,1.02385567]
[1728076790164,0.0965,62537.0,62536.0,0.161907]
[1728076790401,0.0965,62537.0,62536.0,0.92781371]
[1728076790622,0.25709033,62550.0,62536.0,0.92781371]
[1728076790623,0.0804,62547.0,62545.0,0.159884]
[1728076790844,0.0804,62547.0,62545.0,0.89873667]
[1728076791072,0.096242,62546.0,62545.0,0.89873667]
[1728076792211,0.096242,62546.0,62545.0,0.91273667]
[1728076793559,0.096242,62546.0,62545.0,0.92673667]
[1728076795156,0.096242,62546.0,62545.0,0.93301648]
[1728076797131,0.12130367,62546.0,62545.0,0.93301648]
[1728076799672,0.12130367,62546.0,62545.0,0.67381381]
[1728076799897,0.12130367,62546.0,62545.0,0.76354996]
[1728076799898,0.20170367,62546.0,62545.0,0.76354996]
[1728076800782,0.20170367,62546.0,62545.0,0.74954996]
[1728076801002,0.176642,62546.0,62545.0,0.73554996]
[1728076801222,0.176642,62546.0,62545.0,0.92673667]
[1728076802135,0.176642,62546.0,62545.0,0.91273667]
[1728076802351,0.176642,62546.0,62545.0,0.92673667]
[1728076802568,0.176642,62546.0,62545.0,0.91273667]
[1728076803056,0.176642,62546.0,62545.0,0.92673667]
[1728076803494,0.176642,62546.0,62545.0,0.89873667]
[1728076803708,0.176642,62546.0,62545.0,0.91273667]
[1728076803923,0.20170423,62546.0,62545.0,0.92673667]
[1728076807748,0.176642,62546.0,62545.0,0.92673667]
[1728076808203,0.176642,62546.0,62545.0,0.91273667]
[1728076808439,0.176642,62546.0,62545.0,0.92673667]
[1728076808661,0.176642,62546.0,62545.0,0.91273667]
[1728076808877,0.176642,62546.0,62545.0,0.92673667]
[1728076809563,0.176642,62546.0,62545.0,0.91273667]
[1728076809788,0.176642,62546.0,62545.0,0.92673667]
[1728076811379,0.20170413,62546.0,62545.0,0.92673667]
[1728076816989,0.20170413,62546.0,62545.0,0.76354996]
[1728076820415,0.176642,62546.0,62545.0,0.76354996]
[1728076823784,0.20170543,62546.0,62545.0,0.76354996]
[1728076823998,0.176642,62546.0,62545.0,0.76354996]
[1728076824416,0.096242,62546.0,62545.0,0.76354996]
[1728076826858,0.12130538,62546.0,62545.0,0.76354996]
[1728076828626,0.096242,62546.0,62545.0,0.76354996]
[1728076829767,0.091242,62546.0,62545.0,0.76354996]
[1728076831153,0.092884,62546.0,62545.0,0.76354996]
[1728076831885,0.11794728,62546.0,62545.0,0.76354996]
[1728076832130,0.092884,62546.0,62545.0,0.76354996]
[1728076834814,0.092884,62546.0,62545.0,0.78008751]
[1728076835237,0.11794721,62546.0,62545.0,0.76354996]
[1728076835665,0.092884,62546.0,62545.0,0.7800979]
[1728076835876,0.092884,62546.0,62545.0,0.76354996]
[1728076836336,0.092884,62546.0,62545.0,0.82775211]
[1728076839513,0.092884,62546.0,62545.0,0.81120397]
[1728076839755,0.11794739,62546.0,62545.0,0.81120397]
[1728076840758,0.11794739,62546.0,62545.0,0.82779192]
[1728076840995,0.02670539,62546.0,62545.0,0.81120397]
[1728076841706,0.001642,62546.0,62545.0,0.81120397]
[1728076842409,0.001642,62546.0,62545.0,0.81126833]
[1728076843118,0.001642,62546.0,62545.0,0.82786818]
[1728076843348,0.001642,62546.0,62545.0,0.82868818]
[1728076844308,0.001642,62546.0,62545.0,0.78096981]
[1728076844541,0.001642,62546.0,62545.0,0.82868545]
[1728076845011,0.02670497,62546.0,62545.0,0.82868545]
[1728076846968,0.02670497,62546.0,62545.0,0.78096981]
[1728076847452,0.02670497,62546.0,62545.0,0.82867772]
[1728076853200,0.02670497,62546.0,62545.0,0.76436996]
[1728076853474,0.02670497,62546.0,62545.0,0.78092878]
[1728076854429,0.02670497,62546.0,62545.0,1.01568895]
[1728076856117,0.02670497,62546.0,62545.0,1.09848895]
[1728076856543,0.02670497,62546.0,62545.0,1.08193013]
[1728076856761,0.02670497,62546.0,62545.0,1.09840609]
[1728076857032,0.02670497,62546.0,62545.0,1.08193013]
[1728076858100,0.02670497,62546.0,62545.0,1.09838862]
[1728076859898,0.02670497,62546.0,62545.0,1.08193013]
[1728076860128,0.02670497,62546.0,62545.0,1.0983902]
[1728076861279,0.02670497,62546.0,62545.0,1.02681674]
[1728076861490,0.02670497,62546.0,62545.0,1.09834803]
[1728076862337,0.02670497,62546.0,62545.0,1.02681674]
[1728076863476,0.02670497,62546.0,62545.0,1.09834841]
[1728076863711,0.02670497,62546.0,62545.0,1.02681674]
[1728076864576,0.02670497,62546.0,62545.0,1.09834686]
[1728076865062,0.02670497,62546.0,62545.0,1.02681674]
[1728076865500,0.02670497,62546.0,62545.0,1.09834658]
[1728076871109,0.02670497,62546.0,62545.0,1.09833983]
[1728076872849,0.02670497,62546.0,62545.0,1.09834397]
[1728076876263,0.02670497,62546.0,62545.0,1.09834293]
[1728076876489,0.02670497,62546.0,62545.0,1.09834448]
[1728076881303,0.02670497,62546.0,62545.0,1.09834634]
[1728076882853,0.001642,62546.0,62545.0,1.02682243]
[1728076883112,0.001642,62546.0,62545.0,1.01035667]
[1728076883323,0.001642,62546.0,62545.0,1.10571463]
[1728076883990,0.001642,62546.0,62545.0,1.12215795]
[1728076886684,0.02670402,62546.0,62545.0,1.12215795]
[1728076887638,0.001642,62546.0,62545.0,1.12215795]
[1728076888041,0.001642,62546.0,62545.0,1.10571463]
[1728076888285,0.001642,62546.0,62545.0,1.12219251]
[1728076889822,0.001642,62546.0,62545.0,1.12218375]
[1728076891416,0.001642,62546.0,62545.0,1.10570587]
[1728076891633,0.001642,62546.0,62545.0,1.13866726]
[1728076892920,0.001642,62546.0,62545.0,1.13868232]
[1728076893157,0.001642,62546.0,62545.0,1.12220154]
[1728076893399,0.001642,62546.0,62545.0,1.13868721]
[1728076893605,0.02670399,62546.0,62545.0,1.13868721]
[1728076894035,0.001642,62546.0,62545.0,1.13868721]
[1728076895289,0.001642,62546.0,62545.0,1.12220154]
[1728076895504,0.001642,62546.0,62545.0,0.79734349]
[1728076895713,0.02670412,62546.0,62545.0,0.82854283]
[1728076895929,0.001642,62546.0,62545.0,0.82854283]
[1728076897369,0.001642,62546.0,62545.0,0.81454283]
[1728076897511,0.001642,62546.0,62545.0,0.82854283]
[1728076897713,0.001642,62546.0,62545.0,0.81454283]
[1728076897937,0.001642,62546.0,62545.0,0.80054283]
[1728076898374,0.001642,62546.0,62545.0,0.81454283]
[1728076898583,0.001642,62546.0,62545.0,0.82854283]
[1728076898819,0.001642,62546.0,62545.0,0.81454283]
[1728076899030,0.001642,62546.0,62545.0,0.82854283]
[1728076899427,0.001642,62546.0,62545.0,0.81454283]
[1728076899644,0.001642,62546.0,62545.0,0.82854283]
[1728076900264,0.001642,62546.0,62545.0,0.81454283]
[1728076900674,0.001642,62546.0,62545.0,0.82854283]
[1728076900876,0.001642,62546.0,62545.0,0.81454283]
[1728076901082,0.001642,62546.0,62545.0,0.80066318]
[1728076901301,0.001642,62546.0,62545.0,0.82866318]
[1728076901720,0.001642,62546.0,62545.0,0.81206222]
[1728076901921,0.001642,62546.0,62545.0,0.80066404]
[1728076902155,0.001642,62546.0,62545.0,0.81466404]
[1728076902407,0.001642,62546.0,62545.0,0.81206222]
[1728076904135,0.02670499,62546.0,62545.0,0.81206222]
[1728076904306,0.001642,62546.0,62545.0,0.81206222]
[1728076907987,0.001642,62546.0,62545.0,0.81210284]
[1728076908412,0.02670511,62546.0,62545.0,0.81210284]
[1728076908619,0.001642,62546.0,62545.0,0.81210284]
[1728076909283,0.001642,62546.0,62545.0,0.82868457]
[1728076909482,0.001642,62546.0,62545.0,0.81210284]
[1728076909893,0.001642,62546.0,62545.0,0.82868357]
[1728076910743,0.001642,62546.0,62545.0,0.81210284]
[1728076911186,0.001642,62546.0,62545.0,0.82866606]
[1728076911599,0.001642,62546.0,62545.0,0.82867479]
[1728076912016,0.001642,62546.0,62545.0,0.78094191]
[1728076912227,0.001642,62546.0,62545.0,0.76436996]
[1728076916218,0.0267056,62546.0,62545.0,0.76436996]
[1728076920369,0.0267056,62546.0,62545.0,0.668354]
[1728076920598,0.0267056,62546.0,62545.0,0.76436996]
[1728076924987,0.001642,62546.0,62545.0,0.76436996]
[1728076938409,0.001642,62546.0,62545.0,0.81209883]
[1728076941544,0.001642,62546.0,62545.0,0.76436996]
[1728076955633,0.001642,62546.0,62545.0,0.78100671]
[1728076958086,0.001642,62546.0,62545.0,0.7810053]
[1728076961388,0.001642,62546.0,62545.0,0.76436996]
[1728076962125,0.001642,62546.0,62545.0,0.78100296]
[1728076964721,0.001642,62546.0,62545.0,0.76436996]
[1728076964954,0.001642,62546.0,62545.0,0.78098875]
[1728076965368,0.001642,62546.0,62545.0,0.78097732]
[1728076968297,0.001642,62546.0,62545.0,0.78098569]
[1728076968731,0.001642,62546.0,62545.0,1.1174724]
[1728076968942,0.001642,62546.0,62545.0,1.1891201]
[1728076969150,0.001642,62546.0,62545.0,1.1174724]
[1728076969363,0.001642,62546.0,62545.0,1.1891197]
[1728076969568,0.001642,62546.0,62545.0,1.1174724]
[1728076972568,0.001642,62546.0,62545.0,1.10085667]
[1728076974116,0.001642,62546.0,62545.0,1.11747869]
[1728076974979,0.001642,62546.0,62545.0,1.10085667]
[1728076975185,0.001642,62546.0,62545.0,1.11746992]
[1728076975386,0.001642,62546.0,62545.0,1.11746108]
[1728076975590,0.001642,62546.0,62545.0,1.18910838]
[1728076975967,0.001642,62546.0,62545.0,1.09280838]
[1728076976177,0.001642,62546.0,62545.0,0.92962167]
[1728076976377,0.001642,62546.0,62545.0,0.85797437]
[1728076976579,0.001642,62546.0,62545.0,0.85262167]
[1728076977032,0.001642,62546.0,62545.0,0.78097437]
[1728076977204,0.001642,62546.0,62545.0,0.85262167]
[1728076977377,0.001642,62546.0,62545.0,0.83601726]
[1728076978160,0.001642,62546.0,62545.0,0.76436996]
[1728076978349,0.001642,62546.0,62545.0,0.85268189]
[1728076979126,0.001642,62546.0,62545.0,0.78103459]
[1728076981892,0.001642,62546.0,62545.0,0.78097555]
[1728076982331,0.001642,62546.0,62545.0,0.76436996]
[1728076982997,0.001642,62546.0,62545.0,0.78096903]
[1728076983409,0.001642,62546.0,62545.0,0.76436996]
[1728076984504,0.001642,62546.0,62545.0,0.78097398]
[1728076984714,0.001642,62546.0,62545.0,0.76436996]
[1728076985184,0.001642,62546.0,62545.0,0.78097033]
[1728076989493,0.001642,62546.0,62545.0,0.76436996]
[1728076990632,0.001642,62546.0,62545.0,0.55624122]
[1728076990633,0.172142,62546.0,62545.0,0.55624122]
[1728076990852,0.332024,62546.0,62545.0,0.50847]
[1728076991058,0.172142,62546.0,62545.0,0.50847]
[1728076991271,0.332024,62546.0,62545.0,0.50847]
[1728076991483,0.172142,62546.0,62545.0,0.50847]
[1728076991696,0.172142,62546.0,62545.0,0.48047]
[1728076992117,0.172142,62546.0,62545.0,0.49447]
[1728076992559,0.172142,62546.0,62545.0,0.50847]
[1728076993667,0.172142,62546.0,62545.0,0.654354]
[1728076993871,0.172142,62546.0,62545.0,0.668354]
[1728076999505,0.19720863,62546.0,62545.0,0.668354]
[1728077000197,0.02670863,62546.0,62545.0,0.91344071]
[1728077000429,0.001642,62546.0,62545.0,0.91344071]
[1728077014044,0.011642,62546.0,62545.0,0.91344071]
[1728077019032,0.011642,62546.0,62545.0,0.668354]
[1728077019282,0.011642,62546.0,62545.0,0.76436996]
[1728077069868,0.011642,62546.0,62545.0,0.84206996]
[1728077081617,0.011642,62546.0,62545.0,0.76436996]
[1728077084327,0.011642,62546.0,62545.0,0.668354]
[1728077084565,0.011642,62546.0,62545.0,0.76436996]
[1728077100442,0.011642,62546.0,62545.0,1.10255667]
[1728077100872,0.011642,62546.0,62545.0,1.00654071]
[1728077101325,0.011642,62546.0,62545.0,1.10255667]
[1728077113766,0.011642,62546.0,62545.0,1.17431757]
[1728077113972,0.011642,62546.0,62545.0,1.10255667]
[1728077114855,0.011642,62546.0,62545.0,1.1503844]
[1728077115325,0.011642,62546.0,62545.0,1.10255667]
[1728077117614,0.011642,62546.0,62545.0,1.15037604]
[1728077118031,0.011642,62546.0,62545.0,1.10255667]
[1728077119342,0.011642,62546.0,62545.0,1.17427057]
[1728077120749,0.011642,62546.0,62545.0,1.10255667]
[1728077121451,0.011642,62546.0,62545.0,1.17427057]
[1728077121665,0.011642,62546.0,62545.0,1.1907592]
[1728077122123,0.011642,62546.0,62545.0,1.1190453]
[1728077124669,0.011642,62546.0,62545.0,1.10255667]
[1728077124879,0.011642,62546.0,62545.0,1.11908016]
[1728077125508,0.011642,62546.0,62545.0,1.02518016]
[1728077125713,0.011642,62546.0,62545.0,1.07298156]
[1728077129273,0.011642,62546.0,62545.0,1.07298104]
[1728077130494,0.011642,62546.0,62545.0,1.07297773]
[1728077130907,0.011642,62546.0,62545.0,0.73267506]
[1728077131114,0.011642,62546.0,62545.0,0.82869102]
[1728077131325,0.011642,62546.0,62545.0,0.81216753]
[1728077131533,0.011642,62546.0,62545.0,0.76436996]
[1728077132389,0.011642,62546.0,62545.0,0.81216753]
[1728077132802,0.011642,62546.0,62545.0,0.76436996]
[1728077133476,0.011642,62546.0,62545.0,0.78095734]
[1728077134820,0.011642,62546.0,62545.0,0.76436996]
[1728077135038,0.011642,62546.0,62545.0,0.78093397]
[1728077138765,0.011642,62546.0,62545.0,0.78097983]
[1728077138966,0.011642,62546.0,62545.0,0.8287774]
[1728077139114,0.011642,62546.0,62545.0,0.73276144]
[1728077139314,0.011642,62546.0,62545.0,0.8287774]
[1728077141632,0.011642,62546.0,62545.0,0.82878788]
[1728077142502,0.011642,62546.0,62545.0,0.78099031]
[1728077142855,0.011642,62546.0,62545.0,0.78098511]
[1728077143056,0.011642,62546.0,62545.0,0.68496915]
[1728077143265,0.011642,62546.0,62545.0,0.76436996]
[1728077143504,0.011642,62546.0,62545.0,0.78100572]
[1728077144522,0.011642,62546.0,62545.0,0.85270208]
[1728077146571,0.011642,62546.0,62545.0,0.83606632]
[1728077146782,0.011642,62546.0,62545.0,0.85269405]
[1728077154660,0.011642,62546.0,62545.0,0.85280635]
[1728077155540,0.111642,62546.0,62545.0,0.85280635]
[1728077155748,0.111642,62546.0,62545.0,0.78099769]
[1728077157716,0.111642,62546.0,62545.0,0.87674257]
[1728077158843,0.111642,62546.0,62545.0,1.04963391]
[1728077159056,0.111642,62546.0,62545.0,0.95523391]
[1728077161286,0.111642,62546.0,62545.0,0.9551991]
[1728077164210,0.111642,62546.0,62545.0,0.95519328]
[1728077164627,0.111642,62546.0,62545.0,0.95523066]
[1728077167390,0.111642,62546.0,62545.0,0.93865222]
[1728077167567,0.111642,62546.0,62545.0,0.95522547]
[1728077167845,0.111642,62546.0,62545.0,0.93865222]
[1728077168058,0.111642,62546.0,62545.0,0.95523019]
[1728077169689,0.111642,62546.0,62545.0,0.9552696]
[1728077170984,0.111642,62546.0,62545.0,0.95529255]
[1728077176536,0.111642,62546.0,62545.0,0.95530924]
[1728077177843,0.111642,62546.0,62545.0,0.9553342]
[1728077178275,0.111642,62546.0,62545.0,0.93870832]
[1728077178929,0.111642,62546.0,62545.0,0.95531254]